[Event "XX Sant Marti Open 2018"]
[Site "Sant Marti"]
[Date "2018.07.20"]
[Round "8"]
[White "Grafl, Florian"]
[Black "Ruiz Castillo, Joshua Daniel"]
[Result "0-1"]
[ECO "C01"]
[WhiteElo "2364"]
[BlackElo "2410"]
[Annotator "NA"]
[PlyCount "80"]
[EventDate "2018.07.13"]
[EventType "swiss"]
[EventCountry "ESP"]
[SourceTitle "playchess.com"]
[Source "ChessBase"]
[SourceQuality "1"]
[TimeControl "5400+30"]

1. d4 {[%emt 0:00:00]} Nf6 {[%emt 0:00:00]} 2. Nc3 {[%emt 0:00:00]} e6 {[%emt 0:00:00]} 3. e4 {[%emt 0:00:00]} d5 {[%emt 0:00:00]} 4. exd5 {[%emt 0:00:00]} exd5 {[%emt 0:00:22]} 5. Bg5 {[%emt 0:00:00]} Be7 {[%emt 0:01:13]} 6. Bd3 {[%emt 0:01:53]} O-O {[%emt 0:02:53]} 7. Nge2 {[%emt 0:00:12]} c6 {[%emt 0:01:02]} 8. O-O {[%emt 0:02:46]} Bg4 {[%emt 0:00:11]} 9. f3 {[%emt 0:13:53]} Bh5 {[%emt 0:00:16]} 10. Ng3 {[%emt 0:00:33]} Bg6 {[%emt 0:00:06]} 11. f4 {[%emt 0:09:52]} Bxd3 {[%emt 0:01:28]} 12. Qxd3 {[%emt 0:01:05]} Re8 {[%emt 0:12:01]} 13. Nf5 {[%emt 0:10:40]} Bf8 {[%emt 0:00:08]} 14. Qg3 {[%emt 0:00:27]} Kh8 {[%emt 0:00:04]} 15. Qh4 {[%emt 0:00:11]} Nbd7 {[%emt 0:00:10]} 16. Rf3 {[%emt 0:00:40]} Qb6 {[%emt 0:03:38]} 17. Rh3 {[%emt 0:41:33]} Qxb2 {[%emt 0:02:46]} 18. Rf1 {[%emt 0:00:02]} Qxc2 {[%emt 0:00:45]} 19. g4 {[%emt 0:00:04]} Re6 {[%emt 0:01:54]} 20. Nd1 {[%emt 0:00:46]} h6 {[%emt 0:06:08]} 21. Nde3 {[%emt 0:00:02]} Rxe3 {[%emt 0:27:32]} 22. Nxe3 {[%emt 0:03:14]} Qd2 {[%emt 0:00:59]} 23. Nf5 {[%emt 0:00:18]} Ng8 {[%emt 0:00:36]} 24. Qe1 {[%emt 0:04:59]} Qxa2 {[%emt 0:00:52]} 25. Rf2 {[%emt 0:05:33]} Qc4 {[%emt 0:01:18]} 26. Re2 {[%emt 0:00:43]} Bb4 {[%emt 0:03:12]} 27. Qd1 {[%emt 0:01:27]} a5 {[%emt 0:01:27]} 28. Rc2 {[%emt 0:00:45]} Qb5 {[%emt 0:00:18]} 29. Rb2 {[%emt 0:01:09]} Qc4 {[%emt 0:00:45]} 30. Rc2 {[%emt 0:01:22]} Qa6 {[%emt 0:00:01]} 31. Nxh6 {[%emt 0:00:43]} gxh6 {[%emt 0:00:11]} 32. Bxh6 {[%emt 0:00:04]} Nxh6 {[%emt 0:00:03]} 33. g5 {[%emt 0:00:02]} Re8 {[%emt 0:00:16]} 34. Kg2 {[%emt 0:01:23]} Re1 {[%emt 0:00:44]} 35. Qf3 {[%emt 0:00:27]} Bf8 {[%emt 0:00:14]} 36. Rf2 {[%emt 0:00:34]} Qb5 {[%emt 0:00:40]} 37. Qg4 {[%emt 0:00:29]} Qb1 {[%emt 0:00:10]} 38. Rxh6+ {[%emt 0:00:26]} Bxh6 {[%emt 0:00:21]} 39. Qxd7 {[%emt 0:00:04]} Rg1+ {[%emt 0:00:44]} 40. Kh3 {[%emt 0:00:02]} Qh7 {[%emt 0:00:08]} 0-1